bitfinex/quotes_ETHUSD_20241018
["timestamp","ask_amount","ask_price","bid_price","bid_amount"]
[1729269496399,0.78405452,2642.4,2642.1,0.7871]
[1729269496687,0.78405452,2642.3,2642.1,0.7871]
[1729269498091,0.78405452,2642.4,2642.1,0.7871]
[1729269498963,1.16640576,2642.6,2642.1,0.7871]
[1729269498964,0.78405452,2642.6,2642.1,0.7871]
[1729269499216,0.78405452,2642.7,2642.1,0.7871]
[1729269501525,0.78405452,2642.6,2642.1,0.7871]
[1729269501752,0.78405452,2642.5,2642.1,0.7871]
[1729269501948,0.78405452,2642.5,2641.9,0.8325]
[1729269501949,1.16640576,2642.2,2641.9,0.8325]
[1729269502110,1.55451607,2642.3,2641.9,0.8325]
[1729269502111,0.78219352,2642.0,2641.9,0.8325]
[1729269502728,0.78219352,2642.1,2641.9,0.8325]
[1729269503316,1.13250506,2642.1,2641.9,0.8325]
[1729269505149,0.78219352,2642.1,2641.9,0.8325]
[1729269505326,0.78219352,2642.2,2641.9,0.8325]
[1729269506461,0.78219352,2642.3,2641.9,0.8325]
[1729269506698,0.78219352,2642.4,2641.9,0.8325]
[1729269507173,1.16640576,2642.6,2641.9,0.8325]
[1729269507174,0.78219352,2642.5,2641.9,0.8325]
[1729269507526,0.78219352,2642.4,2641.9,0.8325]
[1729269507827,0.78219352,2642.5,2641.9,0.8325]
[1729269509164,0.97705345,2642.5,2641.9,0.8325]
[1729269509373,0.78219352,2642.3,2641.9,0.8325]
[1729269509782,0.78219352,2642.2,2641.9,0.8325]
[1729269510073,0.78219352,2642.0,2641.7,0.79427781]
[1729269510268,0.78219352,2642.1,2641.7,0.79427781]
[1729269510497,1.0542857,2642.1,2641.7,0.79427781]
[1729269510781,0.78219352,2642.0,2641.7,0.79427781]
[1729269511307,1.0542857,2642.1,2641.7,0.79427781]
[1729269511580,0.78219352,2642.1,2641.7,0.79427781]
[1729269511985,0.78219352,2642.0,2641.7,0.79427781]
[1729269512293,0.78219352,2642.1,2641.7,0.79427781]
[1729269513186,0.78219352,2641.9,2641.7,0.79427781]
[1729269513371,0.19485993,2641.8,2641.7,0.79427781]
[1729269513553,0.97705345,2641.8,2641.7,0.79427781]
[1729269514285,0.19485993,2641.8,2641.7,0.79427781]
[1729269514758,0.78219352,2642.1,2641.7,1.58397781]
[1729269514960,0.78219352,2642.2,2641.7,1.58397781]
[1729269515575,0.78219352,2642.3,2641.7,1.58397781]
[1729269515774,0.97705345,2642.2,2641.7,1.58397781]
[1729269517084,0.78219352,2642.1,2641.7,1.58397781]
[1729269517287,0.97705345,2642.2,2641.7,1.58397781]
[1729269518389,0.19485993,2642.2,2641.7,1.58397781]
[1729269519062,0.97705345,2642.2,2641.7,1.58397781]
[1729269519908,0.19485993,2642.2,2641.7,1.58397781]
[1729269520204,0.97705345,2642.2,2641.7,1.58397781]
[1729269521263,0.19485993,2642.2,2641.7,1.58397781]
[1729269521587,0.97705345,2642.2,2641.7,1.58397781]
[1729269521756,0.21434592,2642.1,2641.7,1.58397781]
[1729269522160,0.99653944,2642.1,2641.7,1.58397781]
[1729269522787,0.21434592,2642.1,2641.7,1.58397781]
[1729269523603,0.78219352,2642.2,2641.7,1.58397781]
[1729269523761,0.78219352,2642.3,2641.7,1.58397781]
[1729269524504,0.78219352,2642.2,2641.7,1.58397781]
[1729269524711,0.78219352,2642.3,2641.7,1.58397781]
[1729269524867,0.97705345,2642.2,2641.7,1.58397781]
[1729269525071,0.19485993,2642.2,2641.7,1.58397781]
[1729269525486,0.97705345,2642.2,2641.7,1.58397781]
[1729269525691,0.19485993,2642.2,2641.7,1.58397781]
[1729269526313,0.97705345,2642.2,2641.7,1.58397781]
[1729269527022,0.19485993,2642.2,2641.7,1.58397781]
[1729269527504,0.97705345,2642.2,2641.7,1.58397781]
[1729269529788,0.19485993,2642.2,2641.7,0.79427781]
[1729269530113,0.78219352,2642.3,2641.8,0.786]
[1729269530500,0.78219352,2642.2,2641.8,0.786]
[1729269530711,0.78219352,2642.3,2641.8,0.786]
[1729269531220,0.78219352,2642.2,2641.8,0.786]
[1729269531419,0.78219352,2642.3,2641.8,0.786]
[1729269531629,0.19485993,2642.2,2641.8,0.786]
[1729269531924,0.97705345,2642.2,2641.8,0.786]
[1729269532106,0.19485993,2642.2,2641.8,0.786]
[1729269532784,0.97705345,2642.2,2641.8,0.786]
[1729269533520,0.19485993,2642.2,2641.8,0.786]
[1729269533714,0.78219352,2642.3,2641.8,0.786]
[1729269533891,0.78219352,2642.4,2641.8,0.786]
[1729269534088,0.78219352,2642.5,2641.8,0.786]
[1729269534328,0.78219352,2642.4,2641.8,0.786]
[1729269535326,0.78219352,2642.3,2641.8,0.786]
[1729269535524,0.78219352,2642.2,2641.8,0.786]
[1729269536530,0.78219352,2642.1,2641.8,0.786]
[1729269536786,0.78219352,2642.2,2641.8,0.786]
[1729269536936,0.97705345,2642.1,2641.8,0.786]
[1729269538545,0.97705345,2642.1,2641.7,0.79427781]
[1729269538725,0.78219352,2641.8,2641.7,0.79427781]
[1729269539709,1.16640576,2641.9,2641.7,0.79427781]
[1729269540131,0.78176873,2641.8,2641.7,0.79427781]
[1729269540343,0.78196935,2641.9,2641.7,1.62407781]
[1729269540559,1.16640576,2642.0,2641.7,1.62407781]
[1729269540560,0.78196935,2642.0,2641.7,1.62407781]
[1729269540738,0.78196935,2642.1,2641.8,0.8298]
[1729269541046,0.78196935,2642.2,2641.8,0.8298]
[1729269541660,0.78196935,2642.3,2641.8,0.8298]
[1729269542255,0.78196935,2642.2,2641.8,0.8298]
[1729269542416,0.78196935,2642.1,2641.8,0.8298]
[1729269543516,0.78196935,2642.0,2641.8,0.8298]
[1729269543714,1.16640576,2642.2,2641.8,0.8298]
[1729269543715,0.78196935,2642.1,2641.8,0.8298]
[1729269544297,0.78196935,2642.0,2641.8,0.8298]
[1729269544442,0.78196935,2642.1,2641.8,0.8298]
[1729269545853,0.78196935,2642.2,2641.8,0.8298]
[1729269546215,0.78196935,2642.0,2641.8,0.8298]
[1729269546558,0.78196935,2642.1,2641.8,0.8298]
[1729269546922,0.78196935,2642.2,2641.8,0.8298]
[1729269547118,0.78196935,2642.1,2641.8,0.8298]
[1729269548064,0.78196935,2642.2,2641.8,0.8298]
[1729269548563,0.78196935,2642.1,2641.8,0.8298]
[1729269549543,0.78196935,2642.2,2641.8,0.8298]
[1729269550076,0.78196935,2642.1,2641.8,0.8298]
[1729269550391,0.78196935,2642.2,2641.8,0.8298]
[1729269553277,0.78196935,2642.3,2641.8,0.8298]
[1729269553452,0.78196935,2642.2,2641.8,0.8298]
[1729269554336,1.16640576,2642.3,2641.8,0.8298]
[1729269554337,0.78196935,2642.3,2641.8,0.8298]
[1729269554935,0.78196935,2642.2,2641.8,0.8298]
[1729269555610,0.78196935,2642.3,2641.8,0.8298]
[1729269555878,0.78196935,2642.2,2641.8,0.8298]
[1729269556680,0.78196935,2642.3,2641.8,0.8298]
[1729269556844,0.78196935,2642.2,2641.8,0.8298]
[1729269558574,0.78196935,2642.2,2641.8,0.90549712]
[1729269558777,0.78196935,2642.3,2641.8,0.90549712]
[1729269559142,1.16640576,2642.4,2641.8,0.90549712]
[1729269559143,0.78196935,2642.4,2641.8,0.90549712]
[1729269559373,0.78196935,2642.5,2641.8,0.90549712]
[1729269560177,0.78196935,2642.5,2641.8,0.8298]
[1729269562778,0.78196935,2642.6,2641.8,0.8298]
[1729269562973,0.78196935,2642.5,2641.8,0.8298]
[1729269563217,0.78196935,2642.6,2641.8,0.8298]
[1729269563517,0.78196935,2642.5,2641.8,0.8298]
[1729269564081,0.78196935,2642.6,2641.8,0.8298]
[1729269564384,0.78196935,2642.6,2641.9,0.7965]
[1729269567722,0.78196935,2642.6,2641.9,0.91346413]
[1729269569793,0.78196935,2642.6,2641.9,0.7965]
[1729269574097,0.78196935,2642.7,2641.9,0.7965]
[1729269574294,1.16640576,2642.8,2641.9,0.7965]
[1729269574295,0.78196935,2642.6,2641.9,0.7965]
[1729269577041,0.78196935,2642.6,2641.9,0.91762129]
[1729269578519,0.78196935,2642.7,2641.9,0.91762129]
[1729269579013,0.78196935,2642.6,2641.9,0.91762129]
[1729269579816,0.78196935,2642.6,2641.9,0.7965]
[1729269581827,0.97680686,2642.6,2641.9,0.7965]
[1729269582034,0.78196935,2642.6,2641.9,0.7965]
[1729269582228,0.78196935,2642.7,2641.9,0.7965]
[1729269582619,0.78196935,2642.8,2641.9,0.7965]
[1729269584523,0.78196935,2642.8,2642.0,0.8029]
[1729269585150,0.78196935,2642.7,2642.0,0.8029]
[1729269586960,0.78196935,2642.8,2642.0,0.8029]
[1729269587140,0.78196935,2642.7,2642.0,0.8029]
[1729269590454,0.78196935,2642.8,2642.0,0.8029]
[1729269590633,0.78196935,2642.7,2642.0,0.8029]
[1729269591964,0.78196935,2642.8,2642.0,0.8029]
[1729269592158,0.78196935,2642.7,2642.0,0.8029]
[1729269592326,0.78196935,2642.8,2642.0,0.8029]
[1729269599977,1.16640576,2643.0,2642.0,0.8029]
[1729269599978,0.78196935,2642.9,2642.0,0.8029]
[1729269600186,0.78196935,2642.8,2642.0,0.8029]
[1729269600384,0.78196935,2642.9,2642.0,0.8029]
[1729269601280,0.78196935,2642.8,2642.0,0.8029]
[1729269601476,0.78196935,2642.9,2642.0,0.8029]
[1729269602301,0.78196935,2642.8,2642.0,0.8029]
[1729269602606,0.78196935,2642.9,2642.0,0.8029]
[1729269603806,0.78196935,2643.0,2642.0,0.8029]
[1729269604109,1.55451607,2643.3,2642.2,3.8]
[1729269604110,0.78196935,2643.2,2642.2,3.8]
[1729269604317,0.78196935,2643.2,2642.4,0.758]
[1729269604471,0.78196935,2643.3,2642.5,0.758]
[1729269605667,0.78196935,2643.4,2642.5,0.758]
[1729269605885,0.78196935,2643.5,2642.5,0.758]
[1729269606101,0.78196935,2643.6,2642.5,0.758]
[1729269606305,0.78196935,2643.7,2642.5,0.758]
[1729269606662,0.89595715,2643.8,2642.6,0.49064]
[1729269606868,0.89595715,2643.8,2642.7,0.7786]
[1729269607399,0.1139878,2643.8,2642.7,0.7786]
[1729269608503,0.1139878,2643.8,2642.9,0.8094]
[1729269608712,0.1139878,2643.8,2643.1,0.8094]
[1729269608885,0.1139878,2643.8,2643.2,0.88504212]
[1729269609414,0.1139878,2643.8,2643.2,0.8094]
[1729269612196,0.1139878,2643.8,2643.2,0.3784]
[1729269612370,0.1139878,2643.8,2643.3,1.1657]
[1729269612575,0.1139878,2643.8,2643.4,0.7873]
[1729269613616,0.1139878,2643.8,2643.5,0.7932]
[1729269615390,30.0,2645.0,2643.5,0.7932]
[1729269616307,30.0,2645.0,2643.4,0.8328]
[1729269617822,30.0,2645.0,2643.9,0.8317]
[1729269621631,30.0,2645.0,2644.1,0.7956]
[1729269622303,29.95573736,2645.0,2644.1,0.7956]
[1729269623512,29.95573736,2645.0,2644.2,0.3784]
[1729269623701,29.95573736,2645.0,2644.3,0.797]
[1729269625934,29.95573736,2645.0,2644.5,0.797]
[1729269632233,0.10232491,2644.9,2644.5,0.797]
[1729269632556,0.10232491,2644.9,2644.5,1.2557]
[1729269632733,29.95573736,2645.0,2644.6,0.7595]
[1729269633659,29.95573736,2645.0,2644.6,0.7639]
[1729269637071,29.95573736,2645.0,2644.6,0.88059708]
[1729269642383,29.80837641,2645.0,2644.6,0.88059708]
[1729269642945,0.09759894,2644.9,2644.6,0.88059708]
[1729269650271,0.09759894,2644.9,2644.7,0.07509119]
[1729269651746,0.09759894,2644.9,2644.8,0.82677872]
[1729269652346,29.75105727,2645.0,2644.8,0.82677872]
[1729269652885,29.40515029,2645.0,2644.8,0.82677872]
[1729269653090,0.09096285,2644.9,2644.8,0.7695]
[1729269653308,0.01587166,2644.9,2644.8,0.7695]
[1729269653449,0.08838291,2644.9,2644.8,0.7695]
[1729269654687,0.08838291,2644.9,2644.8,3.0405]
[1729269654994,0.08838291,2644.9,2644.8,1.12305971]
[1729269655175,0.08838291,2644.9,2644.8,0.7695]
[1729269656584,29.2277332,2645.0,2644.8,0.7695]
[1729269656908,0.08229658,2644.9,2644.8,0.7695]
[1729269658073,0.07955336,2644.9,2644.8,0.7695]
[1729269658397,25.88997076,2645.0,2644.8,0.7695]
[1729269658695,0.07681015,2644.9,2644.8,0.7695]
[1729269659080,0.07159803,2644.9,2644.8,0.7695]
[1729269660056,21.97141894,2645.0,2644.8,0.7695]
[1729269660267,0.06921143,2644.9,2644.8,0.7695]
[1729269660556,0.06690438,2644.9,2644.8,0.7695]
[1729269660757,19.48313475,2645.0,2644.8,0.7695]
[1729269660958,0.06467423,2644.9,2644.8,0.7695]
[1729269661255,19.48313475,2645.0,2644.8,0.7695]
[1729269661256,17.96678321,2645.0,2644.8,0.7695]
[1729269661576,16.85791682,2645.0,2644.8,0.7695]
[1729269661786,0.06040145,2644.9,2644.8,0.7695]
[1729269661981,16.34017438,2645.0,2644.8,0.7695]
[1729269662294,0.05838807,2644.9,2644.8,0.7695]
[1729269662497,0.0564418,2644.9,2644.8,0.7695]
[1729269663987,15.67110425,2645.0,2644.8,0.7695]
[1729269664253,15.33857854,2645.0,2644.8,0.7695]
[1729269664509,0.05145606,2644.9,2644.8,0.7695]
[1729269664868,0.04980301,2644.9,2644.7,0.7642]
[1729269665271,12.53915761,2645.0,2644.7,0.7642]
[1729269665457,0.04804236,2644.8,2644.7,0.7642]
[1729269665800,10.01219997,2645.0,2644.7,0.7642]
[1729269666000,0.04804236,2644.8,2644.7,0.7642]
[1729269666156,9.1595114,2645.0,2644.7,0.7642]
[1729269666664,0.04654149,2644.9,2644.7,0.7642]
[1729269666863,1.36196467,2645.0,2644.7,0.7642]
[1729269667399,0.85328001,2645.0,2644.7,0.7642]
[1729269668256,0.63338,2645.0,2644.7,0.7642]
[1729269668463,0.63338,2645.0,2644.9,0.8054]
[1729269668900,0.02271019,2645.4,2644.9,0.8054]
[1729269669200,0.78181712,2645.8,2645.0,0.07559809]
[1729269669515,0.04734561,2645.7,2645.0,0.07559809]
[1729269669801,0.78181712,2645.8,2645.0,0.07559809]
[1729269670099,0.04737085,2645.7,2645.0,0.07559809]
[1729269670300,0.78181712,2645.9,2645.0,0.07559809]
[1729269670506,0.04727037,2645.6,2645.0,0.07559809]
[1729269670665,0.78181712,2645.8,2645.0,0.07559809]
[1729269670862,0.04716987,2645.5,2645.0,0.07559809]
[1729269671175,0.78181712,2645.8,2645.0,0.07559809]
[1729269671578,0.04737085,2645.7,2645.0,0.07559809]
[1729269672101,0.78181712,2645.8,2645.0,0.07559809]
[1729269672315,0.04727037,2645.6,2645.0,0.07559809]
[1729269672464,0.78181712,2645.8,2645.0,0.07559809]
[1729269672810,0.04716987,2645.5,2645.1,0.7989]
[1729269672962,0.78181712,2645.9,2645.1,0.7989]
[1729269673475,0.04719921,2645.8,2645.1,0.7989]
[1729269673700,0.0008,2646.0,2645.1,0.7989]
[1729269674004,0.04711038,2645.7,2645.1,0.7989]
[1729269674162,0.0008,2646.0,2645.1,0.7989]
[1729269674562,0.0457408,2645.9,2645.1,0.7989]
[1729269674799,0.0457408,2645.9,2645.0,0.79318084]
[1729269674800,0.0457408,2645.9,2645.2,0.03607319]
[1729269674997,0.0008,2646.0,2645.3,0.7989]
[1729269675202,0.04564033,2645.8,2645.3,0.7989]
[1729269675369,0.0457408,2645.9,2645.3,0.7989]
[1729269675567,0.04553985,2645.7,2645.3,0.7989]
[1729269675773,0.04564033,2645.8,2645.3,0.7989]
[1729269675978,0.0008,2646.0,2645.3,0.7989]
[1729269676495,0.0457408,2645.9,2645.3,0.7989]
[1729269678124,0.0457408,2645.9,2645.3,0.91936767]
[1729269678618,0.04411563,2645.8,2645.3,0.91936767]
[1729269678920,0.0008,2646.0,2645.3,0.91936767]
[1729269679210,0.04401515,2645.7,2645.3,0.91936767]
[1729269679410,0.0008,2646.0,2645.3,0.91936767]
[1729269679775,0.04431897,2645.9,2645.3,0.91936767]
[1729269680514,0.0442185,2645.8,2645.3,0.91936767]
[1729269680875,0.0008,2646.0,2645.4,0.02026695]
[1729269681073,0.04411802,2645.7,2645.5,0.7989]
[1729269681395,0.0008,2646.0,2645.6,0.02026541]
[1729269681779,0.04431897,2645.9,2645.5,0.7989]
[1729269681982,0.0008,2646.0,2645.5,0.7989]
[1729269682179,0.1280077,2646.4,2645.5,0.7989]
[1729269682678,0.04176505,2646.3,2645.5,0.7989]
[1729269682876,0.1280077,2646.4,2645.5,0.7989]
[1729269683478,0.1280077,2646.4,2645.5,1.1773]
[1729269683726,0.1280077,2646.4,2645.6,0.7793]
[1729269685486,0.04176505,2646.3,2645.6,0.7793]
[1729269685818,0.1280077,2646.4,2645.6,0.7793]
[1729269688197,0.1280077,2646.4,2645.3,0.8153]
[1729269688528,0.1280077,2646.4,2645.3,0.11997959]
[1729269688683,0.03992,2646.3,2645.3,0.11997959]
[1729269688885,0.03992,2646.3,2645.1,0.8153]
[1729269690009,0.1280077,2646.4,2645.2,0.8153]
[1729269690196,0.1280077,2646.4,2645.4,1.1937]
[1729269690398,0.1280077,2646.4,2645.5,0.8153]
[1729269690601,0.03992,2646.3,2645.5,0.8153]
[1729269690924,0.1280077,2646.4,2645.5,0.8153]
[1729269691129,0.03981956,2646.2,2645.5,0.8153]
[1729269691288,0.1280077,2646.4,2645.5,0.8153]
[1729269691622,0.03971911,2646.1,2645.5,0.8153]
[1729269691823,0.1280077,2646.4,2645.5,0.8153]
[1729269692189,0.03992,2646.3,2645.5,0.8153]
[1729269693022,0.1280077,2646.4,2645.5,0.8153]
[1729269693299,0.03992,2646.3,2645.5,0.8153]
[1729269693511,0.1280077,2646.4,2645.5,0.8153]
[1729269693904,0.1280077,2646.4,2645.7,0.7735]
[1729269694126,0.1280077,2646.4,2645.8,0.3784]
[1729269694304,0.1280077,2646.4,2645.9,0.7735]
[1729269694725,0.03992,2646.3,2645.9,0.7735]
[1729269694930,0.1280077,2646.4,2645.9,0.7735]
[1729269695147,0.03989743,2646.2,2645.9,0.7735]
[1729269695459,0.1280077,2646.4,2645.4,1.1333]
[1729269695818,0.04007573,2646.3,2645.4,1.1333]
[1729269696018,0.04007573,2646.3,2645.5,0.7582]
[1729269698165,0.04007573,2646.3,2645.5,0.87837677]
[1729269699562,0.04007573,2646.3,2645.5,0.12017677]
[1729269699757,0.04007573,2646.3,2645.3,0.7582]
[1729269699962,0.33052007,2646.3,2645.3,0.7582]
[1729269700128,1.50324575,2646.3,2645.3,0.7582]
[1729269700461,0.33052007,2646.3,2645.3,0.7582]
[1729269702350,1.50324575,2646.3,2645.3,0.7582]
[1729269702844,1.50324575,2646.3,2645.0,0.79318084]
[1729269702845,1.17272568,2646.1,2645.0,0.79318084]
[1729269703063,1.17272568,2646.0,2644.8,0.8207]
[1729269703222,1.17272568,2645.9,2644.8,0.8207]
[1729269703425,1.17272568,2645.8,2644.8,0.8207]
[1729269703623,0.27363599,2645.7,2644.8,0.8207]
[1729269703859,0.27363599,2645.7,2643.9,0.8098]
[1729269704059,0.03796047,2645.6,2643.9,0.8098]
[1729269704323,0.03796047,2645.6,2643.5,31.18570932]
[1729269704324,1.17272568,2645.0,2643.6,0.8098]
[1729269704520,0.03719648,2644.9,2643.6,0.8098]
[1729269704730,0.31455212,2644.9,2643.7,0.45898]
[1729269705353,0.03719648,2644.9,2643.7,0.45898]
[1729269705627,1.20992216,2644.9,2643.5,0.8098]
[1729269705855,0.03719648,2644.9,2643.5,0.8098]
[1729269706174,1.17272568,2645.2,2643.5,0.8098]
[1729269706342,0.03704312,2645.1,2643.5,0.8098]
[1729269706542,0.31067911,2645.1,2643.5,0.8098]
[1729269706878,1.17272568,2644.9,2643.4,0.70778435]
[1729269707050,1.17272568,2644.9,2643.5,0.7893]
[1729269707236,0.0367415,2644.8,2643.5,0.7893]
[1729269708170,0.03664094,2644.7,2643.5,0.7893]
[1729269708479,1.17272568,2645.2,2643.5,0.7893]
[1729269708635,0.03654038,2644.6,2643.5,0.7893]
[1729269708836,0.64091457,2645.1,2643.6,0.0310706]
[1729269709344,0.03694259,2645.0,2643.6,0.0310706]
[1729269717210,0.03694259,2645.0,2643.7,0.797]
[1729269717377,0.03694259,2645.0,2643.9,0.797]
[1729269717560,0.03694259,2645.0,2643.5,0.797]
[1729269717760,1.17272568,2645.6,2643.5,0.797]
[1729269717963,0.33697177,2645.5,2643.7,0.7597]
[1729269718603,0.33697177,2645.5,2643.8,0.7597]
[1729269718904,0.03597218,2645.5,2643.8,0.7597]
[1729269719278,1.17272568,2645.9,2643.8,0.7597]
[1729269719575,0.03631652,2645.8,2643.8,0.7597]
[1729269720801,0.03631652,2645.8,2643.8,1.22876032]
[1729269721003,0.03631652,2645.8,2643.9,0.8197]
[1729269721305,1.17272568,2645.9,2643.9,0.8197]
[1729269721687,0.03636328,2645.8,2643.9,0.8197]
[1729269721924,1.17272568,2645.9,2643.9,0.8197]
[1729269722094,1.17272568,2645.9,2644.0,0.7538]
[1729269722270,1.17272568,2645.9,2644.1,0.7538]
[1729269722609,1.17272568,2645.9,2644.3,0.7538]
[1729269722812,1.17272568,2645.9,2644.4,0.7868]
[1729269722974,1.17272568,2645.9,2644.5,0.7868]
[1729269723174,1.17272568,2645.9,2644.7,0.7998]
[1729269724012,0.02271019,2646.3,2644.8,0.7998]
[1729269724315,3.67278572,2647.3,2645.0,0.7998]
[1729269724474,3.67278572,2647.1,2645.0,0.7998]
[1729269724719,1.56702447,2647.3,2645.0,0.7998]
[1729269725060,4.06708451,2647.3,2645.0,0.7998]
[1729269726161,3.67278572,2646.9,2645.0,0.7998]
[1729269726764,3.67278572,2647.1,2645.0,0.91950659]
[1729269727318,3.67278572,2646.9,2645.0,0.91950659]
[1729269727544,3.67278572,2646.7,2645.0,0.91950659]
[1729269727746,0.03571527,2646.3,2645.0,0.7998]
[1729269728323,4.8455114,2647.1,2645.0,0.7998]
[1729269728546,0.03571527,2646.3,2645.0,0.7998]
[1729269728742,4.8455114,2647.1,2645.2,0.833]
[1729269728939,0.03571527,2646.3,2645.2,0.833]
[1729269729130,3.67278572,2646.9,2645.2,0.833]
[1729269729337,0.03571527,2646.3,2645.2,0.833]
[1729269729543,3.67278572,2646.9,2645.2,0.833]
[1729269729837,0.03571527,2646.3,2645.2,0.833]
[1729269730369,4.8455114,2647.1,2645.2,0.833]
[1729269730525,0.03559889,2646.3,2645.2,0.833]
[1729269730722,4.8455114,2647.1,2645.2,0.833]
[1729269730957,0.03559889,2646.3,2645.2,0.833]
[1729269731163,4.8455114,2647.1,2645.2,0.833]
[1729269731462,0.03559889,2646.3,2645.2,0.833]
[1729269731867,1.17272568,2647.0,2645.2,0.833]
[1729269732039,4.8455114,2647.1,2645.2,0.833]
[1729269732236,0.03559889,2646.3,2645.2,0.833]
[1729269732650,4.8455114,2647.1,2645.2,0.833]
[1729269732856,4.8455114,2647.1,2645.2,0.95019163]
[1729269733172,0.03575276,2646.3,2645.2,0.95019163]
[1729269733366,4.8455114,2647.1,2645.2,0.95019163]
[1729269733543,0.03575276,2646.3,2645.2,0.95019163]
[1729269733738,4.8455114,2647.1,2645.2,0.95019163]
[1729269733973,0.03575276,2646.3,2645.2,0.95019163]
[1729269734140,3.67278572,2647.0,2645.2,0.95019163]
[1729269734351,0.03575276,2646.3,2645.2,0.95019163]
[1729269739087,0.41940738,2646.3,2645.2,0.833]
[1729269740659,1.59213306,2646.3,2645.2,0.833]
[1729269742371,0.41940738,2646.3,2645.2,0.833]
[1729269742677,1.59213306,2646.3,2645.2,0.833]
[1729269742879,0.3283775,2646.2,2645.2,0.833]
[1729269743373,0.03565511,2646.1,2645.2,0.833]
[1729269744394,1.17272568,2646.3,2645.2,0.833]
[1729269744559,0.03568352,2646.2,2645.2,0.833]
[1729269745157,1.2084092,2646.2,2645.2,0.833]
[1729269745398,1.44993003,2646.1,2644.9,0.7589]
[1729269745699,1.17272568,2645.8,2644.9,0.7589]
[1729269745861,1.17272568,2645.8,2644.8,0.79330601]
[1729269746062,1.20790687,2645.7,2644.8,0.79330601]
[1729269746598,4.8455114,2645.6,2644.8,0.79330601]
[1729269746799,0.52299882,2645.5,2644.8,0.79330601]
[1729269747010,0.03492956,2645.5,2644.8,0.79330601]
[1729269747296,0.03492956,2645.5,2644.9,0.7727]
[1729269747498,1.17272568,2645.9,2644.9,0.7727]
[1729269747669,0.03482906,2645.4,2644.9,0.7727]
[1729269747869,1.44993003,2646.1,2644.9,0.7727]
[1729269748089,0.03472855,2645.3,2644.9,0.7727]
[1729269748408,0.03462803,2645.2,2644.9,0.7727]
[1729269748907,0.30135643,2646.0,2644.9,0.7727]
[1729269749262,0.0353315,2645.9,2644.9,0.7727]
[1729269749964,1.17272568,2646.3,2644.9,0.7727]
[1729269750159,0.32206963,2646.2,2644.9,0.7727]
[1729269751106,1.49479531,2646.2,2644.9,0.7727]
[1729269751868,0.03563287,2646.2,2644.9,0.7727]
[1729269752194,0.03563287,2646.2,2645.1,0.7701]
[1729269754687,0.03563287,2646.2,2645.1,0.3784]
[1729269754896,0.03563287,2646.2,2645.2,0.7734]
[1729269755111,0.1280077,2646.4,2645.2,0.7734]
[1729269755287,0.1280077,2646.4,2645.2,1.1518]
[1729269755479,0.1280077,2646.4,2645.3,0.3784]
[1729269755480,0.03468014,2646.3,2645.3,0.3784]
[1729269755813,0.1280077,2646.4,2645.7,0.8016]
[1729269761100,0.1280077,2646.4,2644.8,20.35330601]
[1729269761307,1.30073338,2646.4,2645.2,0.8167]
[1729269762338,1.17272568,2646.2,2645.2,0.8167]
[1729269762678,1.17272568,2646.2,2644.9,0.8167]
[1729269762679,1.17272568,2646.1,2644.9,0.8167]
[1729269762883,1.17272568,2645.9,2644.9,0.8167]
[1729269763176,1.17272568,2645.7,2644.9,0.8167]
[1729269765375,1.17272568,2645.7,2644.8,0.79330601]
[1729269765584,1.17272568,2645.6,2644.8,0.79330601]
[1729269765776,1.17272568,2645.5,2644.8,0.79330601]
[1729269765991,1.44636167,2645.4,2644.8,0.79330601]
[1729269766489,1.17272568,2645.3,2643.7,0.7941]
[1729269766896,1.17272568,2645.3,2643.8,0.59142203]
[1729269767126,1.17272568,2645.2,2643.8,0.59142203]
[1729269767321,1.17272568,2645.3,2643.8,0.59142203]
[1729269767625,0.30099959,2645.2,2643.8,0.59142203]
[1729269768037,1.47372527,2645.2,2643.8,0.59142203]
[1729269769213,1.44636167,2645.4,2643.9,0.8148]
[1729269769416,1.17272568,2645.3,2643.9,0.8148]
[1729269769617,1.44636167,2645.4,2643.9,0.8148]
[1729269771030,0.27363599,2645.4,2644.1,0.8148]
[1729269771337,1.17272568,2645.6,2644.1,0.8148]
[1729269771495,1.17272568,2645.7,2644.1,0.8148]
[1729269771694,1.17272568,2645.6,2644.1,0.8148]
[1729269772024,0.27363599,2645.5,2644.1,0.8148]
[1729269772388,1.17272568,2645.6,2644.1,0.8148]
[1729269772595,1.17272568,2645.4,2644.1,0.8148]
[1729269772936,1.17272568,2645.3,2644.1,0.8148]
[1729269773096,1.56363425,2645.5,2644.1,0.8148]
[1729269773097,1.17272568,2645.2,2644.1,0.8148]
[1729269773436,1.17272568,2645.3,2644.1,0.8148]
[1729269773647,0.27363599,2645.2,2644.1,0.8148]
[1729269775015,1.17272568,2645.4,2644.1,0.8148]
[1729269778347,1.17272568,2645.5,2644.1,0.8148]
[1729269778544,1.17272568,2645.5,2643.9,0.7567]
[1729269778850,1.17272568,2645.6,2644.0,0.7567]
[1729269779232,1.17272568,2645.6,2644.1,0.7567]
[1729269779549,0.27363599,2645.5,2644.1,0.7567]
[1729269780119,1.17272568,2645.7,2644.1,0.7567]
[1729269780336,1.17272568,2645.8,2644.1,0.7567]
[1729269780646,1.17272568,2645.9,2644.1,0.7567]
[1729269780856,0.3404046,2645.8,2644.1,0.7567]
[1729269781080,1.44636167,2646.0,2644.2,0.771]
[1729269781740,1.17272568,2646.0,2644.2,0.771]
[1729269782374,1.17272568,2646.1,2644.2,0.771]
[1729269784343,1.17272568,2646.0,2644.2,0.771]
[1729269785788,1.17272568,2646.1,2644.2,0.771]
[1729269786085,1.44636167,2646.0,2644.4,0.7996]
[1729269786253,1.17272568,2646.1,2644.4,0.7996]
[1729269786455,1.17272568,2646.0,2644.4,0.7996]
[1729269787680,1.17272568,2646.1,2644.4,0.7996]
[1729269787843,1.17272568,2646.0,2644.4,0.7996]
[1729269788039,1.17272568,2645.9,2644.4,0.7996]
[1729269788444,1.17272568,2646.0,2644.4,0.7996]
[1729269788656,1.17272568,2645.9,2644.4,0.7996]
[1729269789468,1.17272568,2645.8,2644.4,0.7996]
[1729269789802,1.44636167,2645.7,2644.4,0.7996]
[1729269789968,1.17272568,2645.5,2644.4,0.7996]
[1729269790167,1.17272568,2645.6,2644.4,0.7996]
[1729269790693,0.27363599,2645.7,2644.4,0.7996]
[1729269790851,1.17272568,2645.9,2644.4,0.7996]
[1729269791395,1.17272568,2646.0,2644.4,0.7996]